bitfinex/quotes_BTCUSD_20230111
["timestamp","ask_amount","ask_price","bid_price","bid_amount"]
[1673405581997,4.15301378,17423.0,17422.0,0.01689264]
[1673405582205,3.72458865,17423.0,17422.0,0.01689264]
[1673405582483,3.89570978,17423.0,17422.0,0.01689264]
[1673405582705,4.5313469,17423.0,17422.0,0.01689264]
[1673405585764,4.3678469,17423.0,17422.0,0.01689264]
[1673405586513,4.02470789,17423.0,17422.0,0.01689264]
[1673405586999,4.3678397,17423.0,17422.0,0.01689264]
[1673405587255,4.02470789,17423.0,17422.0,0.01689264]
[1673405587511,4.02470789,17423.0,17422.0,0.01682177]
[1673405587764,4.36782754,17423.0,17422.0,0.01682177]
[1673405589456,4.36784025,17423.0,17422.0,0.01682177]
[1673405589717,4.02470789,17423.0,17422.0,0.01682177]
[1673405592254,4.16835642,17423.0,17422.0,0.01682177]
[1673405594577,4.02470789,17423.0,17422.0,0.01682177]
[1673405594846,4.3677805,17423.0,17422.0,0.01682177]
[1673405595095,4.37288334,17423.0,17422.0,0.01682177]
[1673405595616,3.56103792,17423.0,17422.0,0.01682177]
[1673405595869,2.41271198,17423.0,17422.0,0.01682177]
[1673405596395,2.58426624,17423.0,17422.0,0.01682177]
[1673405596652,2.24119363,17423.0,17422.0,0.01682177]
[1673405596915,1.73490579,17423.0,17422.0,0.01682177]
[1673405597238,1.37572879,17423.0,17422.0,0.01682177]
[1673405597418,1.37572879,17423.0,17422.0,0.57269864]
[1673405597935,1.88201663,17423.0,17422.0,0.57269864]
[1673405598187,2.24119363,17423.0,17422.0,0.01682177]
[1673405598444,2.41271198,17423.0,17422.0,0.01682177]
[1673405598921,1.88202704,17423.0,17422.0,0.01682177]
[1673405599233,1.3757392,17423.0,17422.0,0.01682177]
[1673405599489,1.88202704,17423.0,17422.0,0.01682177]
[1673405599737,1.7349162,17423.0,17422.0,0.01682177]
[1673405599985,1.3757392,17423.0,17422.0,0.01682177]
[1673405601719,1.2122392,17423.0,17422.0,0.01682177]
[1673405603445,0.95491953,17423.0,17422.0,0.01682177]
[1673405603693,1.71852704,17423.0,17422.0,0.01682177]
[1673405603944,2.42077665,17423.0,17422.0,0.01182177]
[1673405604193,2.24921198,17423.0,17422.0,0.01182177]
[1673405604430,1.89003498,17423.0,17422.0,0.01182177]
[1673405604670,3.39752844,17423.0,17422.0,0.01182177]
[1673405608392,3.82595357,17423.0,17422.0,0.01182177]
[1673405608643,3.5686339,17423.0,17422.0,0.01182177]
[1673405609363,4.21980311,17423.0,17422.0,0.01182177]
[1673405609887,3.5686339,17423.0,17422.0,0.01182177]
[1673405610103,3.82605955,17423.0,17422.0,0.01182177]
[1673405610358,3.5686339,17423.0,17422.0,0.01182177]
[1673405611108,4.21987394,17423.0,17422.0,0.01182177]
[1673405611868,3.7135861,17423.0,17422.0,0.01182177]
[1673405612441,3.06234606,17423.0,17422.0,0.01182177]
[1673405613613,2.53218737,17423.0,17422.0,0.01182177]
[1673405613862,3.03847521,17423.0,17422.0,0.01182177]
[1673405614103,3.39765221,17423.0,17422.0,0.01182177]
[1673405614861,3.03847521,17423.0,17422.0,0.01182177]
[1673405616837,3.39765221,17423.0,17422.0,0.01182177]
[1673405617355,3.3976456,17423.0,17422.0,0.01182177]
[1673405619334,1.21242754,17423.0,17422.0,0.01182177]
[1673405620339,0.39225104,17423.0,17422.0,0.67963354]
[1673405623076,0.39225104,17423.0,17422.0,1.25361954]
[1673405626573,0.39225104,17423.0,17422.0,0.01182177]
[1673405626574,0.64969448,17423.0,17422.0,0.01182177]
[1673405626821,1.00887148,17423.0,17422.0,0.01182177]
[1673405627076,0.64969448,17423.0,17422.0,2.12421993]
[1673405627338,0.64969448,17423.0,17422.0,2.24579904]
[1673405627339,0.2206218,17423.0,17422.0,2.24579904]
[1673405627610,0.2206218,17423.0,17422.0,2.41791328]
[1673405627611,0.22055838,17423.0,17422.0,2.41791328]
[1673405628134,0.12455838,17423.0,17422.0,2.26848665]
[1673405628412,0.12455838,17423.0,17422.0,2.92210084]
[1673405628662,0.15255838,17423.0,17422.0,3.09702223]
[1673405628898,0.15255838,17423.0,17422.0,3.09690815]
[1673405629160,0.15255838,17423.0,17422.0,3.09690835]
[1673405629416,0.12455838,17423.0,17422.0,2.90246502]
[1673405629667,0.12955838,17423.0,17422.0,2.69126338]
[1673405629921,0.12455838,17423.0,17422.0,2.90246502]
[1673405630179,0.12955838,17423.0,17422.0,2.94946502]
[1673405630443,0.12955838,17423.0,17422.0,2.69126338]
[1673405631193,0.12955838,17423.0,17422.0,2.97819338]
[1673405631442,0.12955838,17423.0,17422.0,3.38756689]
[1673405631690,0.12955838,17423.0,17422.0,3.85991517]
[1673405632183,0.12955838,17423.0,17422.0,4.49376394]
[1673405632513,0.12955838,17423.0,17422.0,4.66557424]
[1673405632699,0.12955838,17423.0,17422.0,4.32130457]
[1673405632944,0.12955838,17423.0,17422.0,3.6874558]
[1673405633693,0.12955838,17423.0,17422.0,3.85991517]
[1673405634456,0.12955838,17423.0,17422.0,3.68746822]
[1673405635198,0.12955838,17423.0,17422.0,3.97876927]
[1673405635447,0.12955838,17423.0,17422.0,4.27876927]
[1673405637174,0.12955838,17423.0,17422.0,3.97876927]
[1673405637432,0.12955838,17423.0,17422.0,3.52917221]
[1673405638218,0.12955838,17423.0,17422.0,3.35734949]
[1673405639230,0.12955838,17423.0,17422.0,3.35234949]
[1673405641783,0.36723627,17423.0,17422.0,2.43328366]
[1673405642049,0.12955838,17423.0,17422.0,1.19479377]
[1673405642782,1.23793421,17423.0,17422.0,0.62080777]
[1673405642783,0.73164637,17423.0,17422.0,0.62080777]
[1673405643075,0.73164637,17423.0,17422.0,0.047]
[1673405643354,1.23793421,17423.0,17422.0,0.047]
[1673405645248,1.59711121,17423.0,17422.0,0.047]
[1673405645757,1.23793421,17423.0,17422.0,0.047]
[1673405646258,0.73164637,17423.0,17422.0,0.047]
[1673405649482,0.73164637,17423.0,17422.0,0.33399]
[1673405657217,0.89424637,17423.0,17422.0,0.33399]
[1673405661743,0.73164637,17423.0,17422.0,0.33399]
[1673405663851,0.73164637,17423.0,17422.0,0.907976]
[1673405664399,1.23793421,17423.0,17422.0,0.620986]
[1673405664920,1.40956345,17423.0,17422.0,0.047]
[1673405668696,0.73164637,17423.0,17422.0,0.047]
[1673405669231,1.23793421,17423.0,17422.0,0.047]
[1673405669453,0.73164637,17423.0,17422.0,0.047]
[1673405670504,1.23793421,17423.0,17422.0,0.047]
[1673405670750,1.40956345,17423.0,17422.0,0.047]
[1673405671244,1.23793421,17423.0,17422.0,0.047]
[1673405671502,1.40956345,17423.0,17422.0,0.047]
[1673405673756,1.66700689,17423.0,17422.0,0.047]
[1673405675553,1.40956345,17423.0,17422.0,0.047]
[1673405676544,1.83845026,17423.0,17422.0,0.047]
[1673405677048,2.01012867,17423.0,17422.0,0.047]
[1673405677289,2.9867561,17423.0,17422.0,0.047]
[1673405677543,1.83845026,17423.0,17422.0,0.047]
[1673405677779,2.0101288,17423.0,17422.0,0.047]
[1673405678272,1.66706659,17423.0,17422.0,0.047]
[1673405678522,2.98675331,17423.0,17422.0,0.047]
[1673405681751,3.14875331,17423.0,17422.0,0.047]
[1673405682276,3.50793031,17423.0,17422.0,0.047]
[1673405683043,3.14875331,17423.0,17422.0,0.047]
[1673405683784,3.50793031,17423.0,17422.0,0.047]
[1673405687273,3.93635544,17423.0,17422.0,0.047]
[1673405687539,3.50809086,17423.0,17422.0,0.047]
[1673405687789,3.678912,17423.0,17422.0,0.047]
[1673405688551,4.30937881,17423.0,17422.0,0.047]
[1673405689852,3.95020181,17423.0,17422.0,0.047]
[1673405690104,3.14887435,17423.0,17422.0,0.047]
[1673405693735,3.57729948,17423.0,17422.0,0.047]
[1673405693941,3.93647648,17423.0,17422.0,0.047]
[1673405694196,3.5080543,17423.0,17422.0,0.047]
[1673405694441,3.1488773,17423.0,17422.0,0.047]
[1673405694895,3.319735,17423.0,17422.0,0.047]
[1673405696934,3.678912,17423.0,17422.0,0.047]
[1673405697186,3.678912,17423.0,17422.0,0.33399]
[1673405697187,3.14889854,17423.0,17422.0,0.33399]
[1673405700633,1.8293322,17423.0,17422.0,0.33399]
[1673405700872,2.64259387,17423.0,17422.0,0.33399]
[1673405701116,3.32068546,17423.0,17422.0,0.33399]
[1673405701642,3.32070825,17423.0,17422.0,0.33399]
[1673405701898,3.14660371,17423.0,17422.0,0.33399]
[1673405702156,2.46906989,17423.0,17422.0,0.33399]
[1673405702657,1.32078367,17423.0,17422.0,0.33399]
[1673405703640,2.46905566,17423.0,17422.0,0.33399]
[1673405703917,2.64030164,17423.0,17422.0,0.33399]
[1673405705163,2.64030164,17423.0,17422.0,0.047]
[1673405706483,1.32079313,17423.0,17422.0,0.69344585]
[1673405708338,1.82708097,17423.0,17422.0,0.69344585]
[1673405708570,1.32079313,17423.0,17422.0,0.69344585]
[1673405709322,2.81214767,17423.0,17422.0,0.69344585]
[1673405709611,3.14659942,17423.0,17422.0,0.69344585]
[1673405710893,1.3207477,17423.0,17422.0,1.26743185]
[1673405712341,1.3207477,17423.0,17422.0,1.55442185]
[1673405712831,1.06315903,17423.0,17422.0,1.55442185]
[1673405713085,0.46107104,17423.0,17422.0,1.55442185]
[1673405713595,0.71865971,17423.0,17422.0,1.55442185]
[1673405719212,0.71865971,17423.0,17422.0,1.26743185]
[1673405721756,0.55665971,17423.0,17422.0,1.26743185]
[1673405722252,0.55665971,17423.0,17422.0,0.620986]
[1673405723055,2.04801842,17423.0,17422.0,0.620986]
[1673405723298,2.04801842,17423.0,17422.0,0.047]
[1673405723299,2.3825156,17423.0,17422.0,0.047]
[1673405723527,3.01990189,17423.0,17422.0,0.047]
[1673405725983,3.19160946,17423.0,17422.0,0.047]
[1673405726265,1.70025075,17423.0,17422.0,0.047]
[1673405726518,1.19396291,17423.0,17422.0,0.047]
[1673405727075,2.51361618,17423.0,17422.0,0.047]
[1673405727303,3.01990402,17423.0,17422.0,0.047]
[1673405728955,2.84854082,17423.0,17422.0,0.047]
[1673405729219,3.01990402,17423.0,17422.0,0.047]
[1673405730269,1.19397837,17423.0,17422.0,0.047]
[1673405731819,2.68533189,17423.0,17422.0,0.047]
[1673405732041,1.19397837,17423.0,17422.0,0.047]
[1673405733086,1.19397837,17423.0,17422.0,0.620986]
[1673405737330,0.9363897,17423.0,17422.0,0.620986]
[1673405737554,1.19397837,17423.0,17422.0,0.620986]
[1673405738038,1.23835567,17423.0,17422.0,0.907976]
[1673405738253,0.980767,17423.0,17422.0,0.907976]
[1673405739526,1.23835567,17423.0,17422.0,0.907976]
[1673405740836,0.980767,17423.0,17422.0,0.907976]
[1673405741538,1.23835567,17423.0,17422.0,0.907976]
[1673405743732,1.23835567,17423.0,17422.0,0.33399]
[1673405744207,2.38662964,17423.0,17422.0,0.33399]
[1673405744448,1.23835567,17423.0,17422.0,0.33399]
[1673405744678,2.38663065,17423.0,17422.0,0.33399]
[1673405744900,2.89291849,17423.0,17422.0,0.33399]
[1673405745147,2.38663065,17423.0,17422.0,0.33399]
[1673405745381,2.55798023,17423.0,17422.0,0.33399]
[1673405745608,3.06426807,17423.0,17422.0,0.33399]
[1673405746984,2.72974007,17423.0,17422.0,0.33399]
[1673405747183,1.23839248,17423.0,17422.0,0.907976]
[1673405749491,2.38666754,17423.0,17422.0,0.907976]
[1673405749753,2.72974015,17423.0,17422.0,0.907976]
[1673405750281,1.23839248,17423.0,17422.0,0.907976]
[1673405751087,1.23839248,17423.0,17422.0,0.33399]
[1673405752234,3.06427997,17423.0,17422.0,0.33399]
[1673405752636,3.06427997,17423.0,17422.0,0.047]
[1673405756535,2.72974314,17423.0,17422.0,0.047]
[1673405756795,1.23838365,17423.0,17422.0,0.047]
[1673405757036,2.38666215,17423.0,17422.0,0.047]
[1673405757278,3.06427159,17423.0,17422.0,0.047]
[1673405761378,3.06242359,17423.0,17422.0,0.047]
[1673405762102,2.55613575,17423.0,17422.0,0.047]
[1673405762578,3.06242359,17423.0,17422.0,0.047]
[1673405765775,3.23326005,17423.0,17422.0,0.047]
[1673405766008,4.22250985,17423.0,17422.0,0.047]
[1673405768444,3.86333285,17423.0,17422.0,0.047]
[1673405769435,3.23326005,17423.0,17422.0,0.047]
[1673405771410,3.86308037,17423.0,17422.0,0.047]
[1673405771656,4.22225737,17423.0,17422.0,0.047]
[1673405772474,3.23326005,17423.0,17422.0,0.047]
[1673405772697,3.49075446,17423.0,17422.0,0.047]
[1673405772919,2.81353578,17423.0,17422.0,0.047]
[1673405773167,2.81353578,17423.0,17422.0,0.72822807]
[1673405773168,1.4938531,17423.0,17422.0,0.72822807]
[1673405778740,0.85646681,17423.0,17422.0,0.72822807]
[1673405778970,0.59897252,17423.0,17422.0,0.72822807]
[1673405779193,0.59897252,17423.0,17422.0,1.30221407]
[1673405782270,0.59897252,17423.0,17422.0,1.58920407]
[1673405783366,0.85646681,17423.0,17422.0,1.58920407]
[1673405785097,0.85646681,17423.0,17422.0,1.30221407]
[1673405785588,0.85646681,17423.0,17422.0,2.15993088]
[1673405785841,0.85646681,17423.0,17422.0,1.30221407]
[1673405788310,0.85646681,17423.0,17422.0,1.58920407]
[1673405789760,0.85646681,17423.0,17422.0,0.620986]
[1673405790265,2.17616037,17423.0,17422.0,0.620986]
[1673405790493,2.68244821,17423.0,17422.0,0.620986]
[1673405792674,4.09661631,17423.0,17422.0,0.047]
[1673405792915,3.59032847,17423.0,17422.0,0.047]
[1673405793392,2.95300138,17423.0,17422.0,0.047]
[1673405795807,3.58827514,17423.0,17422.0,0.047]
[1673405796285,3.5882914,17423.0,17422.0,0.047]
[1673405797022,3.9474684,17423.0,17422.0,0.047]
[1673405799261,3.5882914,17423.0,17422.0,0.047]
[1673405801390,2.95300138,17423.0,17422.0,0.047]
[1673405801845,3.45928922,17423.0,17422.0,0.047]
[1673405802076,3.28836283,17423.0,17422.0,0.047]
[1673405802315,3.45928922,17423.0,17422.0,0.047]
[1673405803028,4.09459413,17423.0,17422.0,0.047]
[1673405803239,3.81846622,17423.0,17422.0,0.047]
[1673405803493,3.45928922,17423.0,17422.0,0.047]
[1673405803747,3.71678116,17423.0,17422.0,0.047]
[1673405803983,3.28835603,17423.0,17422.0,0.047]
[1673405804513,2.78206819,17423.0,17422.0,0.047]
[1673405808565,2.78207597,17423.0,17422.0,0.047]
[1673405809056,2.43900336,17423.0,17422.0,0.047]
[1673405809311,1.46238063,17423.0,17422.0,0.047]
[1673405809538,2.78207841,17423.0,17422.0,0.047]
[1673405809792,1.63377881,17423.0,17422.0,0.047]
[1673405809992,1.80545372,17423.0,17422.0,0.047]
[1673405810206,1.80545412,17423.0,17422.0,0.047]
[1673405810412,2.78207595,17423.0,17422.0,0.047]
[1673405812489,1.80545387,17423.0,17422.0,0.620986]
[1673405812719,1.46238126,17423.0,17422.0,0.620986]
[1673405812945,1.20488932,17423.0,17422.0,0.620986]
[1673405813609,1.08445694,17423.0,17422.0,0.620986]
[1673405814119,1.34194888,17423.0,17422.0,0.620986]
[1673405817468,1.08445694,17423.0,17422.0,0.620986]
[1673405818448,1.34194888,17423.0,17422.0,0.620986]
[1673405820834,1.61109029,17423.0,17422.0,0.047]
[1673405821039,1.61109029,17423.0,17422.0,0.04692241]
[1673405821040,3.51512896,17423.0,17422.0,0.04692241]
[1673405821629,3.08670383,17423.0,17422.0,0.04692241]
[1673405823625,4.13383634,17423.0,17422.0,0.04692241]
[1673405823872,3.57315616,17423.0,17422.0,0.04692241]
[1673405824394,4.21499072,17423.0,17422.0,0.04692241]
[1673405824878,4.17958399,17423.0,17422.0,0.04692241]
[1673405825130,4.7063548,17423.0,17422.0,0.04692241]
[1673405825853,4.17958399,17423.0,17422.0,0.04692241]
[1673405826145,3.6328821,17423.0,17422.0,0.04692241]
[1673405826402,3.8275669,17423.0,17422.0,0.04692241]
[1673405829373,4.25641769,17423.0,17422.0,0.04692241]
[1673405829630,3.8275669,17423.0,17422.0,0.04692241]
[1673405830680,4.2563992,17423.0,17422.0,0.04692241]
[1673405830936,3.63281651,17423.0,17422.0,0.04692241]
[1673405831189,3.18678314,17423.0,17422.0,0.04692241]
[1673405831441,3.79590779,17423.0,17422.0,0.04692241]
[1673405831738,5.18397095,17423.0,17422.0,0.04692241]
[1673405831941,4.88397095,17423.0,17422.0,0.04692241]
[1673405832195,5.46336201,17423.0,17422.0,0.04692241]
[1673405832448,5.46336201,17423.0,17421.0,0.01668115]
[1673405832449,5.48094919,17423.0,17421.0,0.01668115]
[1673405832693,3.11249076,17423.0,17422.0,0.007]
[1673405832966,0.327,17422.0,17421.0,0.01458961]
[1673405833214,3.53643715,17422.0,17421.0,0.01458961]
[1673405833678,4.56598938,17422.0,17421.0,0.02158961]
[1673405833930,4.22301164,17422.0,17421.0,0.02158961]
[1673405835182,3.65584845,17422.0,17421.0,0.01458961]
[1673405835439,4.34783445,17422.0,17421.0,0.02058961]
[1673405836196,4.69074266,17422.0,17421.0,0.02058961]
[1673405836446,3.48596148,17422.0,17421.0,0.02058961]
[1673405836699,4.11660554,17422.0,17421.0,0.02058961]
[1673405837209,4.61585117,17422.0,17421.0,0.02058961]
[1673405837725,4.45305117,17422.0,17421.0,0.02058961]
[1673405839232,3.95380554,17422.0,17421.0,0.02058961]
[1673405839512,3.32316148,17422.0,17421.0,0.02058961]
[1673405840027,3.95453139,17422.0,17421.0,0.02058961]
[1673405840772,3.32316148,17422.0,17421.0,0.02058961]
[1673405841282,3.95451118,17422.0,17421.0,0.02058961]
[1673405841789,3.32316148,17422.0,17421.0,0.02058961]
[1673405842247,3.95445165,17422.0,17421.0,0.02058961]
[1673405842738,4.49487949,17422.0,17421.0,0.02058961]
[1673405844018,3.86358932,17422.0,17421.0,0.02058961]
[1673405844269,3.32316148,17422.0,17421.0,0.02058961]
[1673405844526,3.15153892,17422.0,17421.0,0.02058961]
[1673405845036,2.00307387,17422.0,17421.0,0.02058961]
[1673405845294,3.15151749,17422.0,17421.0,0.02058961]
[1673405846514,3.15152107,17422.0,17421.0,0.85014312]
[1673405846764,3.15152107,17422.0,17421.0,0.02058961]
[1673405847746,2.00307745,17422.0,17421.0,0.02058961]
[1673405848000,3.15152037,17422.0,17421.0,0.02058961]
[1673405848256,3.15151972,17422.0,17421.0,0.02058961]
[1673405851779,2.00307745,17422.0,17421.0,0.02058961]
[1673405852026,3.15151529,17422.0,17421.0,0.02058961]
[1673405853525,3.74299365,17422.0,17421.0,0.02058961]
[1673405853772,4.37560972,17422.0,17421.0,0.02058961]
[1673405854256,4.37560863,17422.0,17421.0,0.02058961]
[1673405855030,3.65574925,17422.0,17421.0,0.02058961]
[1673405855280,2.32896856,17422.0,17421.0,0.02058961]
[1673405855516,1.00920707,17422.0,17421.0,0.02058961]
[1673405856245,1.17263412,17422.0,17421.0,0.02058961]
[1673405857523,1.17268376,17422.0,17421.0,0.02058961]
[1673405857773,2.49237672,17422.0,17421.0,0.02058961]
[1673405858513,2.85155372,17422.0,17421.0,0.02058961]
[1673405858760,2.49237672,17422.0,17421.0,0.02058961]
[1673405859258,2.66383527,17422.0,17421.0,0.02058961]
[1673405860252,2.92137682,17422.0,17421.0,0.02058961]
[1673405860490,2.49265464,17422.0,17421.0,0.02058961]
[1673405860981,2.66383527,17422.0,17421.0,0.02058961]
[1673405861239,2.92135971,17422.0,17421.0,0.02058961]
[1673405861480,2.49263753,17422.0,17421.0,0.02058961]
[1673405864309,2.85181453,17422.0,17421.0,0.02058961]
[1673405865059,3.28053671,17422.0,17421.0,0.02058961]
[1673405865329,2.85181453,17422.0,17421.0,0.02058961]
[1673405865567,2.66383527,17422.0,17421.0,0.02058961]
[1673405865836,2.49259078,17422.0,17421.0,0.02058961]
[1673405867535,3.02301227,17422.0,17421.0,0.02058961]
[1673405867773,2.92129647,17422.0,17421.0,0.02058961]
[1673405868020,2.85163892,17422.0,17421.0,0.02058961]
[1673405868294,2.49245515,17422.0,17421.0,0.02058961]
[1673405872224,2.85163215,17422.0,17421.0,0.02058961]
[1673405873882,2.49245515,17422.0,17421.0,0.02058961]
[1673405874414,3.66157986,17422.0,17421.0,0.02058961]
[1673405876421,3.30240286,17422.0,17421.0,0.02058961]
[1673405877382,3.66157986,17422.0,17421.0,0.02058961]
[1673405877871,3.30240286,17422.0,17421.0,0.02058961]
[1673405878374,3.31867165,17422.0,17421.0,0.02058961]
[1673405879123,2.95949465,17422.0,17421.0,0.02058961]
[1673405879381,3.31867165,17422.0,17421.0,0.02058961]
[1673405879655,2.95949465,17422.0,17421.0,0.02058961]
[1673405880113,3.30277422,17422.0,17421.0,0.02058961]
[1673405880882,3.31867165,17422.0,17421.0,0.02058961]
[1673405881394,2.88994947,17422.0,17421.0,0.02058961]
[1673405881673,2.94777876,17422.0,17421.0,0.02058961]
[1673405881918,3.4385695,17422.0,17421.0,0.02058961]
[1673405882170,3.95267966,17422.0,17421.0,0.02058961]
[1673405882920,3.4385695,17422.0,17421.0,0.02058961]
[1673405884472,3.95267966,17422.0,17421.0,0.02058961]
[1673405885230,3.08196354,17422.0,17421.0,0.02058961]
[1673405886754,3.5960737,17422.0,17421.0,0.02058961]
[1673405887527,3.08196354,17422.0,17421.0,0.02058961]
[1673405888815,3.5960737,17422.0,17421.0,0.02058961]
[1673405889062,3.5960737,17422.0,17421.0,0.01848881]
[1673405889315,3.81803837,17422.0,17421.0,0.01596235]
[1673405889570,3.33455823,17422.0,17421.0,0.01596235]
[1673405889826,3.85603881,17422.0,17421.0,0.01596235]
[1673405891107,3.28205281,17422.0,17421.0,0.01596235]
[1673405892901,3.71095092,17422.0,17421.0,0.01596235]
[1673405893159,3.48898625,17422.0,17421.0,0.01596235]
[1673405896129,3.06008814,17422.0,17421.0,0.01596235]
[1673405898379,3.488964,17422.0,17421.0,0.01596235]
[1673405900112,3.63407414,17422.0,17421.0,0.01596235]
[1673405900606,3.87040343,17422.0,17421.0,0.01596235]
[1673405901864,3.40148809,17422.0,17421.0,0.01596235]
[1673405902882,3.91559825,17422.0,17421.0,0.01596235]
[1673405903123,4.38999501,17422.0,17421.0,0.01596235]
[1673405903375,3.87588485,17422.0,17421.0,0.01596235]
[1673405903632,4.96398101,17422.0,17421.0,0.01596235]
[1673405904141,4.44987085,17422.0,17421.0,0.01596235]
[1673405904399,4.48958425,17422.0,17421.0,0.01596235]
[1673405904665,4.65308425,17422.0,17421.0,0.01596235]
[1673405906226,5.08997714,17422.0,17421.0,0.01596235]
[1673405906423,5.08997714,17422.0,17420.0,0.0038986]
[1673405906424,0.3,17421.0,17420.0,0.0038986]
[1673405906702,3.18376475,17421.0,17420.0,0.0038986]
[1673405906962,4.84739675,17421.0,17420.0,0.0038986]
[1673405907213,3.75778375,17421.0,17420.0,0.0038986]
[1673405907529,3.75778375,17421.0,17415.0,0.02144548]
[1673405907530,0.9038,17420.0,17415.0,0.02144548]
[1673405907741,0.9038,17420.0,17416.0,0.00015]
[1673405907742,0.34289937,17417.0,17416.0,0.00015]
[1673405907993,0.3,17416.0,17415.0,0.01659548]
[1673405908237,0.3,17416.0,17415.0,0.63389395]
[1673405908238,0.7878032,17416.0,17415.0,0.63389395]
[1673405908489,0.86089391,17417.0,17415.0,0.30367548]
[1673405908740,0.66089391,17417.0,17415.0,0.30367548]
[1673405908987,0.66089391,17417.0,17415.0,0.30467548]
[1673405909542,0.072,17416.0,17415.0,0.30567548]
[1673405909784,0.40371578,17417.0,17415.0,0.30367548]
[1673405910090,0.79489391,17417.0,17415.0,0.30470548]
[1673405910554,0.18677359,17416.0,17415.0,0.30470548]
[1673405911100,0.61539979,17416.0,17415.0,0.01759548]
[1673405911363,0.55822166,17416.0,17415.0,0.01759548]
[1673405911616,0.18677359,17416.0,17415.0,0.01759548]
[1673405911871,0.35822166,17416.0,17415.0,0.01759548]
[1673405912123,0.65822166,17416.0,17415.0,0.01759548]
[1673405912374,0.65822166,17416.0,17415.0,0.01659548]
[1673405912678,0.43022166,17416.0,17415.0,0.01759548]
[1673405912865,0.25877359,17416.0,17415.0,0.01759548]
[1673405914401,0.73022166,17416.0,17415.0,0.01759548]
[1673405914652,1.25139866,17416.0,17415.0,0.01759548]
[1673405917396,0.77995059,17416.0,17415.0,0.01759548]
[1673405917642,0.62077359,17416.0,17415.0,0.01759548]
[1673405917894,1.16154099,17416.0,17415.0,0.01759548]
[1673405918407,1.43826521,17416.0,17415.0,0.01759548]
[1673405919158,1.16154099,17416.0,17415.0,0.01759548]
[1673405919405,1.41871912,17416.0,17415.0,0.01759548]
[1673405919665,1.16154099,17416.0,17415.0,0.01759548]
[1673405923664,1.73572499,17416.0,17415.0,0.01759548]
[1673405924931,1.53880907,17416.0,17415.0,0.01759548]
[1673405925269,2.83270392,17416.0,17415.0,0.01759548]
[1673405925441,3.40688792,17416.0,17415.0,0.01759548]
[1673405925687,3.706157,17416.0,17415.0,0.01759548]
[1673405925955,3.878334,17416.0,17415.0,0.01759548]
[1673405926193,5.69710013,17416.0,17415.0,0.01759548]
[1673405926471,0.3,17415.0,17414.0,0.00699977]
[1673405926700,0.3,17415.0,17414.0,0.00490453]
[1673405926701,1.82430352,17415.0,17414.0,0.00490453]
[1673405927001,1.82430352,17415.0,17414.0,0.00279693]
[1673405927263,0.48087689,17414.0,17412.0,0.00483365]
[1673405927528,0.48087689,17414.0,17410.0,1.59291624]
[1673405927529,1.39696,17413.0,17410.0,0.0368057]
[1673405927806,1.39696,17413.0,17408.0,0.574438]
[1673405927807,0.4635,17412.0,17408.0,0.574438]
[1673405928060,0.23767789,17411.0,17407.0,1.148936]
[1673405928314,0.94336422,17412.0,17407.0,1.436166]
[1673405928315,0.23767789,17410.0,17407.0,1.436166]
[1673405928581,0.23767789,17410.0,17407.0,1.431166]
[1673405929375,0.66374225,17409.0,17407.0,1.42905148]
[1673405930648,0.67974225,17409.0,17407.0,1.42905148]
[1673405931156,0.67974225,17409.0,17408.0,0.01992722]
[1673405932441,0.66374225,17409.0,17408.0,0.59437522]
[1673405932680,0.67574225,17409.0,17408.0,0.59437522]
[1673405933006,0.67580225,17409.0,17408.0,0.59437522]
[1673405933460,0.67580225,17409.0,17408.0,0.59488691]
[1673405933727,0.67580225,17409.0,17408.0,0.59437522]
[1673405935500,0.67580225,17409.0,17408.0,1.79412322]
[1673405935740,0.67580225,17409.0,17408.0,2.15330022]
[1673405936487,0.01206,17409.0,17408.0,2.15330022]
[1673405937002,0.01206,17409.0,17408.0,3.09467878]
[1673405937763,0.01206,17409.0,17408.0,2.79467878]
[1673405939011,0.012,17409.0,17408.0,2.79467878]
[1673405943811,0.012,17409.0,17408.0,1.85330022]
[1673405943812,0.67602404,17409.0,17408.0,1.85330022]
[1673405944370,0.67602404,17409.0,17408.0,1.74102505]
[1673405944573,0.67602404,17409.0,17408.0,1.41572505]
[1673405945589,0.67602404,17409.0,17408.0,0.359177]
[1673405945860,0.012,17409.0,17407.0,1.148917]
[1673405946138,0.41317789,17409.0,17406.0,0.574485]
[1673405946410,0.41317789,17409.0,17405.0,0.574516]
[1673405946411,0.1631,17408.0,17405.0,0.574516]
[1673405946675,0.40077789,17408.0,17405.0,0.574516]
[1673405947207,0.40077789,17408.0,17405.0,0.569516]
[1673405947208,0.3,17407.0,17405.0,0.569516]
[1673405947467,0.93460702,17407.0,17406.0,0.004]
[1673405947734,0.63460702,17407.0,17406.0,0.004]
[1673405948444,0.63460702,17407.0,17406.0,0.574514]
[1673405948698,0.69775444,17409.0,17406.0,1.72415336]
[1673405948954,0.69775444,17409.0,17408.0,0.28722]
[1673405949214,0.54082814,17408.0,17407.0,1.44894]
[1673405949499,0.54082814,17408.0,17407.0,1.14894]
[1673405949741,0.162,17408.0,17403.0,0.72858208]
[1673405950022,0.162,17408.0,17403.0,0.08298432]
[1673405950023,0.3,17405.0,17403.0,0.08298432]
[1673405950278,0.23767789,17404.0,17400.0,0.574711]
[1673405950544,0.23767789,17403.0,17401.0,1.149346]
[1673405950829,0.23767789,17403.0,17401.0,1.34239443]
[1673405951109,1.37424621,17405.0,17401.0,1.64239443]
[1673405951375,1.61350884,17405.0,17402.0,0.28731]
[1673405951692,0.6,17405.0,17403.0,0.23759789]
[1673405951945,0.6,17405.0,17404.0,0.28727]
[1673405952205,0.735,17405.0,17404.0,0.946447]
[1673405952481,1.28850274,17405.0,17404.0,0.28727]
[1673405953018,1.42450274,17405.0,17404.0,0.28727]
[1673405953278,1.42450274,17405.0,17404.0,1.43943]
[1673405953279,0.82450274,17405.0,17404.0,1.43943]
[1673405953533,1.42450274,17405.0,17404.0,1.43943]
[1673405953797,1.42450274,17405.0,17404.0,0.57758]
[1673405954055,1.72450274,17405.0,17404.0,0.003]
[1673405954312,2.16323419,17405.0,17404.0,0.003]
[1673405955071,1.5121816,17405.0,17404.0,0.003]
[1673405955324,1.65988184,17405.0,17404.0,0.003]
[1673405956101,1.03606,17405.0,17404.0,0.003]
[1673405956361,1.51128923,17405.0,17404.0,0.00087645]
[1673405956634,0.3,17404.0,17402.0,0.57309891]
[1673405956899,1.4769197,17404.0,17402.0,0.56884772]
[1673405957204,0.6,17403.0,17402.0,0.56884772]
[1673405957470,0.6,17403.0,17401.0,0.60419843]